[Event "Live Chess"]
[Site "Chess.com"]
[Date "2023.05.21"]
[Round "-"]
[White "smoggyrabbit"]
[Black "CheckThis4"]
[Result "0-1"]
[WhiteElo "1739"]
[BlackElo "2493"]
[TimeControl "300"]
[EndTime "22:40:19 PDT"]
[Termination "CheckThis4 won by resignation"]

1. d4 {[%clk 0:04:58]} 1... Nf6 {[%clk 0:04:58.2]} 2. Nf3 {[%clk 0:04:56.9]}
2... c5 {[%clk 0:04:54.8]} 3. d5 {[%clk 0:04:45.7]} 3... b5 {[%clk 0:04:53.2]}
4. Bg5 {[%clk 0:04:22.1]} 4... Bb7 {[%clk 0:04:48.9]} 5. Bxf6 {[%clk 0:04:20.1]}
5... exf6 {[%clk 0:04:47.2]} 6. e4 {[%clk 0:04:19.2]} 6... a6 {[%clk 0:04:45.7]}
7. a4 {[%clk 0:04:06.4]} 7... b4 {[%clk 0:04:44.7]} 8. c3 {[%clk 0:04:03.5]}
8... d6 {[%clk 0:04:18.4]} 9. a5 {[%clk 0:03:55.5]} 9... Nd7 {[%clk 0:04:12.5]}
10. Bd3 {[%clk 0:03:46.6]} 10... Rb8 {[%clk 0:04:09.4]} 11. O-O {[%clk
0:03:42.5]} 11... g6 {[%clk 0:04:07]} 12. Qe2 {[%clk 0:03:35.5]} 12... Qc8
{[%clk 0:04:00.1]} 13. cxb4 {[%clk 0:03:29.4]} 13... cxb4 {[%clk 0:03:58.8]} 14.
Nbd2 {[%clk 0:03:27.1]} 14... Nc5 {[%clk 0:03:56.7]} 15. Rfc1 {[%clk 0:02:58.6]}
15... Bh6 {[%clk 0:03:55.1]} 16. e5 {[%clk 0:02:18.6]} 16... fxe5 {[%clk
0:03:45.3]} 17. Nxe5 {[%clk 0:01:51]} 17... O-O {[%clk 0:03:43.8]} 18. Ng4
{[%clk 0:01:30.4]} 18... Bg7 {[%clk 0:03:36.8]} 19. Rc2 {[%clk 0:00:56]} 19...
Qd7 {[%clk 0:03:17.5]} 20. h3 {[%clk 0:00:49]} 20... Rbe8 {[%clk 0:03:06.6]} 21.
Qf3 {[%clk 0:00:47.4]} 21... f5 {[%clk 0:02:57.4]} 22. Ne3 {[%clk 0:00:42.2]}
22... Nxd3 {[%clk 0:02:50.5]} 23. Qe2 {[%clk 0:00:24.8]} 23... Nc5 {[%clk
0:02:45]} 24. Qc4 {[%clk 0:00:22]} 24... f4 {[%clk 0:02:40.8]} 25. Ng4 {[%clk
0:00:19.5]} 25... h5 {[%clk 0:02:38.8]} 26. Nh2 {[%clk 0:00:18.1]} 26... Qf5
{[%clk 0:02:31]} 27. Nhf3 {[%clk 0:00:15.8]} 27... Bxd5 {[%clk 0:02:27.8]} 28.
Qf1 {[%clk 0:00:11.7]} 28... Qxc2 {[%clk 0:02:25.7]} 0-1

[Event "Live Chess"]
[Site "Chess.com"]
[Date "2023.05.21"]
[Round "-"]
[White "RockTroll"]
[Black "Hacker_2009"]
[Result "0-1"]
[WhiteElo "2212"]
[BlackElo "1945"]
[TimeControl "300"]
[EndTime "22:40:30 PDT"]
[Termination "Hacker_2009 won by resignation"]

1. d4 {[%clk 0:04:57.9]} 1... Nf6 {[%clk 0:04:56.8]} 2. c4 {[%clk 0:04:47.9]}
2... e6 {[%clk 0:04:55]} 3. g3 {[%clk 0:04:46.5]} 3... d5 {[%clk 0:04:53.9]} 4.
Bg2 {[%clk 0:04:45.3]} 4... Be7 {[%clk 0:04:52.1]} 5. Nf3 {[%clk 0:04:35.7]}
5... O-O {[%clk 0:04:51.5]} 6. O-O {[%clk 0:04:33.8]} 6... b6 {[%clk 0:04:51]}
7. cxd5 {[%clk 0:04:31.9]} 7... Nxd5 {[%clk 0:04:49.3]} 8. e4 {[%clk 0:04:29.9]}
8... Nf6 {[%clk 0:04:46.3]} 9. Nc3 {[%clk 0:04:29.4]} 9... Bb7 {[%clk
0:04:44.5]} 10. Qc2 {[%clk 0:04:27]} 10... c5 {[%clk 0:04:41.1]} 11. Rd1 {[%clk
0:03:35.2]} 11... cxd4 {[%clk 0:04:38.5]} 12. Nxd4 {[%clk 0:03:31.3]} 12... Qc8
{[%clk 0:04:36.8]} 13. h3 {[%clk 0:02:25.9]} 13... Nc6 {[%clk 0:04:33.6]} 14.
Be3 {[%clk 0:02:24.8]} 14... Nxd4 {[%clk 0:04:31]} 15. Bxd4 {[%clk 0:02:23.4]}
15... Rd8 {[%clk 0:04:29.8]} 16. Rac1 {[%clk 0:02:22]} 16... Qb8 {[%clk
0:04:17.1]} 17. Be3 {[%clk 0:01:54]} 17... Bc6 {[%clk 0:04:15]} 18. Rxd8+ {[%clk
0:01:51.1]} 18... Qxd8 {[%clk 0:04:13]} 19. e5 {[%clk 0:01:46.7]} 19... Nd5
{[%clk 0:04:09.2]} 20. Nxd5 {[%clk 0:01:43.6]} 20... Bxd5 {[%clk 0:04:07.9]} 21.
Rd1 {[%clk 0:01:42.6]} 21... Qc8 {[%clk 0:03:53.2]} 22. Qxc8+ {[%clk 0:01:39.9]}
22... Rxc8 {[%clk 0:03:51.6]} 23. Bxd5 {[%clk 0:01:39.4]} 23... exd5 {[%clk
0:03:51.5]} 24. Rxd5 {[%clk 0:01:38]} 24... Rc2 {[%clk 0:03:45.8]} 25. Rd2
{[%clk 0:01:36.3]} 25... Rxd2 {[%clk 0:03:40.9]} 26. Bxd2 {[%clk 0:01:36.2]}
26... Kf8 {[%clk 0:03:38.9]} 27. Kg2 {[%clk 0:01:34.9]} 27... Ke8 {[%clk
0:03:38.5]} 28. Kf3 {[%clk 0:01:34.5]} 28... Kd7 {[%clk 0:03:38]} 29. Ke4 {[%clk
0:01:34.1]} 29... Ke6 {[%clk 0:03:35.3]} 30. f4 {[%clk 0:01:33.3]} 30... f5+
{[%clk 0:03:34.2]} 31. Kd3 {[%clk 0:01:29.1]} 31... g6 {[%clk 0:03:32.5]} 32.
Be3 {[%clk 0:01:28.3]} 32... Kd5 {[%clk 0:03:31.3]} 33. g4 {[%clk 0:01:19.5]}
33... Bb4 {[%clk 0:03:18.5]} 34. a3 {[%clk 0:01:13.3]} 34... Be7 {[%clk
0:03:17.1]} 35. gxf5 {[%clk 0:01:08.7]} 35... gxf5 {[%clk 0:03:15.8]} 36. Bd2
{[%clk 0:01:02.7]} 36... h5 {[%clk 0:03:12.9]} 37. Ke3 {[%clk 0:01:01.7]} 37...
Bh4 {[%clk 0:03:09]} 38. Kf3 {[%clk 0:01:00.5]} 38... Be7 {[%clk 0:03:04.9]} 39.
Ke3 {[%clk 0:00:56.8]} 39... Bh4 {[%clk 0:03:03.5]} 40. Kd3 {[%clk 0:00:55.9]}
40... Be7 {[%clk 0:03:01]} 41. Kc3 {[%clk 0:00:54.6]} 41... Ke4 {[%clk
0:02:57.3]} 42. Kc4 {[%clk 0:00:53.7]} 42... a6 {[%clk 0:02:50.7]} 43. Bb4
{[%clk 0:00:52.8]} 43... b5+ {[%clk 0:02:46.3]} 44. Kc3 {[%clk 0:00:47.5]} 44...
Bh4 {[%clk 0:02:33.9]} 45. e6 {[%clk 0:00:46.4]} 45... Kxf4 {[%clk 0:02:33.3]}
46. e7 {[%clk 0:00:46]} 46... Bxe7 {[%clk 0:02:32.8]} 47. Bxe7 {[%clk
0:00:45.8]} 47... Kg3 {[%clk 0:02:32.3]} 48. h4 {[%clk 0:00:45.2]} 48... f4
{[%clk 0:02:30.5]} 49. Kb4 {[%clk 0:00:42.4]} 49... f3 {[%clk 0:02:29.8]} 50.
Bc5 {[%clk 0:00:41.8]} 50... f2 {[%clk 0:02:28.5]} 51. Bxf2+ {[%clk 0:00:39.6]}
51... Kxf2 {[%clk 0:02:28.4]} 52. Ka5 {[%clk 0:00:39.3]} 52... Kg3 {[%clk
0:02:28.3]} 53. Kxa6 {[%clk 0:00:38.8]} 53... Kxh4 {[%clk 0:02:28.2]} 54. Kxb5
{[%clk 0:00:38.5]} 54... Kg3 {[%clk 0:02:24.1]} 55. a4 {[%clk 0:00:38.4]} 55...
h4 {[%clk 0:02:23.7]} 56. a5 {[%clk 0:00:38.3]} 56... h3 {[%clk 0:02:23.1]} 57.
a6 {[%clk 0:00:38.2]} 57... h2 {[%clk 0:02:22.1]} 58. a7 {[%clk 0:00:38.1]}
58... h1=Q {[%clk 0:02:21.2]} 59. Ka6 {[%clk 0:00:36.9]} 59... Kf4 {[%clk
0:02:14.3]} 60. b4 {[%clk 0:00:36]} 60... Ke5 {[%clk 0:02:13.8]} 61. b5 {[%clk
0:00:35.6]} 61... Kd6 {[%clk 0:02:13]} 62. b6 {[%clk 0:00:34.5]} 62... Qc6
{[%clk 0:01:55.2]} 63. Ka5 {[%clk 0:00:18.1]} 63... Qb7 {[%clk 0:01:53.4]} 64.
Kb5 {[%clk 0:00:17.5]} 64... Kd5 {[%clk 0:01:50.3]} 65. Ka5 {[%clk 0:00:15.9]}
65... Kc5 {[%clk 0:01:48.1]} 0-1

[Event "Live Chess"]
[Site "Chess.com"]
[Date "2023.05.21"]
[Round "-"]
[White "raminguy"]
[Black "OleksiyJr1"]
[Result "1-0"]
[WhiteElo "1944"]
[BlackElo "964"]
[TimeControl "300"]
[EndTime "22:40:54 PDT"]
[Termination "raminguy won by resignation"]

1. d4 {[%clk 0:04:59.4]} 1... Nf6 {[%clk 0:04:58.1]} 2. Nc3 {[%clk 0:04:58.8]}
2... c6 {[%clk 0:04:56.5]} 3. Bf4 {[%clk 0:04:57.9]} 3... d5 {[%clk 0:04:55]} 4.
e3 {[%clk 0:04:57.1]} 4... Bf5 {[%clk 0:04:53.1]} 5. Nf3 {[%clk 0:04:55.7]} 5...
e6 {[%clk 0:04:52.3]} 6. Ne5 {[%clk 0:04:54.7]} 6... Nbd7 {[%clk 0:04:49.4]} 7.
g4 {[%clk 0:04:54.1]} 7... Be4 {[%clk 0:04:46.4]} 8. f3 {[%clk 0:04:52.7]} 8...
Nxe5 {[%clk 0:04:44.6]} 9. dxe5 {[%clk 0:04:50.7]} 9... Bb4 {[%clk 0:04:35.8]}
10. exf6 {[%clk 0:04:43.9]} 10... Bxc3+ {[%clk 0:04:33.5]} 11. bxc3 {[%clk
0:04:42.4]} 11... Bg6 {[%clk 0:04:31.7]} 12. h4 {[%clk 0:04:41.1]} 12... h6
{[%clk 0:04:28.5]} 13. h5 {[%clk 0:04:35.9]} 13... Bh7 {[%clk 0:04:26.7]} 14.
fxg7 {[%clk 0:04:34.8]} 14... Rg8 {[%clk 0:04:25.2]} 15. Bd3 {[%clk 0:04:33.6]}
15... Rxg7 {[%clk 0:04:23.4]} 16. Bxh7 {[%clk 0:04:31.8]} 16... Rxh7 {[%clk
0:04:23.3]} 17. Qd3 {[%clk 0:04:31.1]} 17... Qh4+ {[%clk 0:04:21]} 1-0

[Event "Live Chess"]
[Site "Chess.com"]
[Date "2023.05.21"]
[Round "-"]
[White "LaupMiths"]
[Black "LutherSullivan"]
[Result "0-1"]
[WhiteElo "1805"]
[BlackElo "2187"]
[TimeControl "300"]
[EndTime "22:41:09 PDT"]
[Termination "LutherSullivan won by resignation"]

1. Nf3 {[%clk 0:04:55.7]} 1... Nf6 {[%clk 0:04:58.3]} 2. c4 {[%clk 0:04:54.6]}
2... g6 {[%clk 0:04:57.8]} 3. Nc3 {[%clk 0:04:52.5]} 3... d5 {[%clk 0:04:56.8]}
4. e3 {[%clk 0:04:49.9]} 4... Bg7 {[%clk 0:04:53.2]} 5. b3 {[%clk 0:04:47.6]}
5... O-O {[%clk 0:04:45]} 6. Bb2 {[%clk 0:04:46.5]} 6... c6 {[%clk 0:04:43.9]}
7. h3 {[%clk 0:04:41.7]} 7... Re8 {[%clk 0:04:40.9]} 8. d4 {[%clk 0:04:36.8]}
8... Nbd7 {[%clk 0:04:35.8]} 9. cxd5 {[%clk 0:04:28.5]} 9... Nxd5 {[%clk
0:04:31.1]} 10. Be2 {[%clk 0:04:24.4]} 10... Qa5 {[%clk 0:04:20.7]} 11. Qd2
{[%clk 0:04:17.1]} 11... e5 {[%clk 0:04:15.1]} 12. Nxd5 {[%clk 0:04:04.9]} 12...
Qxd2+ {[%clk 0:04:07.3]} 13. Kxd2 {[%clk 0:04:01.4]} 13... cxd5 {[%clk
0:04:06.7]} 14. dxe5 {[%clk 0:03:59]} 14... Nxe5 {[%clk 0:03:54.7]} 15. Nxe5
{[%clk 0:03:57]} 15... Bxe5 {[%clk 0:03:54.3]} 16. Bxe5 {[%clk 0:03:55.7]} 16...
Rxe5 {[%clk 0:03:53.9]} 17. Bf3 {[%clk 0:03:53.3]} 17... Bf5 {[%clk 0:03:52.1]}
18. Rac1 {[%clk 0:03:51.7]} 18... Re7 {[%clk 0:03:46.8]} 19. Rhd1 {[%clk
0:03:45.9]} 19... Rd8 {[%clk 0:03:43.8]} 20. Kc3 {[%clk 0:03:29.5]} 20... Red7
{[%clk 0:03:34.3]} 21. Rd4 {[%clk 0:03:26.3]} 21... Kg7 {[%clk 0:03:32.6]} 22.
Rcd1 {[%clk 0:03:24.5]} 22... Rc7+ {[%clk 0:03:30.8]} 23. Kb4 {[%clk 0:03:17.5]}
23... Rc2 {[%clk 0:03:27.2]} 24. R1d2 {[%clk 0:03:15.4]} 24... Rxd2 {[%clk
0:03:08.1]} 25. Rxd2 {[%clk 0:03:15.3]} 25... Kf6 {[%clk 0:03:05.5]} 26. Rxd5
{[%clk 0:03:10.9]} 26... Rc8 {[%clk 0:02:59.8]} 27. Rd2 {[%clk 0:03:05.2]} 27...
b6 {[%clk 0:02:57.5]} 28. Bd5 {[%clk 0:02:51.7]} 28... Rd8 {[%clk 0:02:52.2]}
29. Kc3 {[%clk 0:02:49]} 29... Rc8+ {[%clk 0:02:46.1]} 30. Kb4 {[%clk
0:02:45.8]} 30... Rd8 {[%clk 0:02:41.8]} 31. Kc3 {[%clk 0:02:44.2]} 31... Rb8
{[%clk 0:02:40.4]} 32. e4 {[%clk 0:02:39.6]} 32... Be6 {[%clk 0:02:37.1]} 33.
Bxe6 {[%clk 0:02:23.6]} 33... Kxe6 {[%clk 0:02:34.5]} 34. f4 {[%clk 0:02:22.8]}
34... Rc8+ {[%clk 0:02:32.6]} 35. Kd3 {[%clk 0:02:21.5]} 35... Rc1 {[%clk
0:02:30.8]} 36. Rc2 {[%clk 0:02:19]} 36... Rd1+ {[%clk 0:02:29.2]} 37. Ke3
{[%clk 0:02:17.8]} 37... Re1+ {[%clk 0:02:26.5]} 38. Kd3 {[%clk 0:02:15.3]}
38... Rd1+ {[%clk 0:02:25.2]} 39. Ke3 {[%clk 0:02:14.3]} 39... Re1+ {[%clk
0:02:23.6]} 40. Kd3 {[%clk 0:02:10.1]} 40... Rf1 {[%clk 0:02:21]} 41. Ke3 {[%clk
0:02:08.7]} 41... f5 {[%clk 0:02:09.4]} 42. e5 {[%clk 0:02:05.6]} 42... g5
{[%clk 0:01:58.7]} 43. Rc6+ {[%clk 0:01:57.1]} 43... Kd5 {[%clk 0:01:49]} 44.
Rd6+ {[%clk 0:01:55.4]} 44... Kc5 {[%clk 0:01:48.5]} 45. g3 {[%clk 0:01:38.3]}
45... gxf4+ {[%clk 0:01:40.9]} 46. gxf4 {[%clk 0:01:38.2]} 46... Rh1 {[%clk
0:01:34.5]} 47. Rh6 {[%clk 0:01:34.8]} 47... Re1+ {[%clk 0:01:32]} 48. Kf2
{[%clk 0:01:30.7]} 48... Ra1 {[%clk 0:01:29.9]} 49. Rf6 {[%clk 0:01:22.6]} 49...
Rxa2+ {[%clk 0:01:28.1]} 50. Ke3 {[%clk 0:01:17.8]} 50... Rb2 {[%clk 0:01:26.3]}
51. Rxf5 {[%clk 0:01:17.3]} 51... Rxb3+ {[%clk 0:01:25]} 52. Ke4 {[%clk
0:01:16.5]} 52... Rxh3 {[%clk 0:01:19.7]} 53. e6+ {[%clk 0:01:15.4]} 53... Kd6
{[%clk 0:01:17.8]} 54. Re5 {[%clk 0:01:13]} 54... Ke7 {[%clk 0:01:16.5]} 55. f5
{[%clk 0:01:12.3]} 55... Rh4+ {[%clk 0:01:07.7]} 56. Kd5 {[%clk 0:01:07.9]}
56... Rf4 {[%clk 0:01:06.5]} 57. Kc6 {[%clk 0:00:55.3]} 57... h5 {[%clk
0:01:05.2]} 58. Kb7 {[%clk 0:00:50.6]} 58... h4 {[%clk 0:01:03.1]} 59. Kxa7
{[%clk 0:00:48.8]} 59... h3 {[%clk 0:01:02.4]} 60. Kxb6 {[%clk 0:00:46.9]} 60...
h2 {[%clk 0:00:57.8]} 61. Re1 {[%clk 0:00:45.2]} 61... Rxf5 {[%clk 0:00:53.7]}
62. Rh1 {[%clk 0:00:44.3]} 62... Rh5 {[%clk 0:00:52.4]} 63. Kc6 {[%clk
0:00:42.2]} 63... Kxe6 {[%clk 0:00:51.7]} 64. Re1+ {[%clk 0:00:37.2]} 64... Kf5
{[%clk 0:00:49.8]} 65. Rh1 {[%clk 0:00:32.8]} 65... Ke4 {[%clk 0:00:47.1]} 66.
Re1+ {[%clk 0:00:29.9]} 66... Kf3 {[%clk 0:00:45.8]} 0-1

[Event "Live Chess"]
[Site "Chess.com"]
[Date "2023.05.21"]
[Round "-"]
[White "Long1968"]
[Black "profpirate4"]
[Result "0-1"]
[WhiteElo "1048"]
[BlackElo "1203"]
[TimeControl "300"]
[EndTime "22:41:21 PDT"]
[Termination "profpirate4 won on time"]

1. e4 {[%clk 0:04:58]} 1... c5 {[%clk 0:04:58.4]} 2. c3 {[%clk 0:04:54.9]} 2...
Nf6 {[%clk 0:04:56.7]} 3. e5 {[%clk 0:04:50.9]} 3... Nd5 {[%clk 0:04:55.7]} 4.
Nf3 {[%clk 0:04:33.5]} 4... d6 {[%clk 0:04:53.3]} 5. exd6 {[%clk 0:04:30.1]}
5... Qxd6 {[%clk 0:04:51.7]} 6. d4 {[%clk 0:04:26.4]} 6... Nc6 {[%clk
0:04:48.7]} 7. Bb5 {[%clk 0:04:04.4]} 7... Bd7 {[%clk 0:04:47.1]} 8. Qe2 {[%clk
0:03:44.5]} 8... cxd4 {[%clk 0:04:39.7]} 9. Nxd4 {[%clk 0:03:39.1]} 9... Nxd4
{[%clk 0:04:29.2]} 10. cxd4 {[%clk 0:03:23.3]} 10... Qb4+ {[%clk 0:04:17]} 11.
Nc3 {[%clk 0:03:02.6]} 11... Nxc3 {[%clk 0:04:14.9]} 12. Bxd7+ {[%clk
0:02:58.4]} 12... Kxd7 {[%clk 0:04:12.7]} 13. Qg4+ {[%clk 0:01:42.9]} 13... e6
{[%clk 0:04:07.3]} 14. a3 {[%clk 0:00:53.5]} 14... Qa5 {[%clk 0:03:58.9]} 15.
Bd2 {[%clk 0:00:45.6]} 15... Rc8 {[%clk 0:03:37.6]} 16. Qf3 {[%clk 0:00:18.4]}
16... Qf5 {[%clk 0:03:15.1]} 17. Qxf5 {[%clk 0:00:04.9]} 17... exf5 {[%clk
0:03:13.9]} 18. bxc3 {[%clk 0:00:02.2]} 18... Re8+ {[%clk 0:03:08.4]} 0-1

[Event "Live Chess"]
[Site "Chess.com"]
[Date "2023.05.21"]
[Round "-"]
[White "Singapourfeuj"]
[Black "HonestJoe1"]
[Result "1-0"]
[WhiteElo "2206"]
[BlackElo "2097"]
[TimeControl "300"]
[EndTime "22:41:22 PDT"]
[Termination "Singapourfeuj won on time"]

1. d4 {[%clk 0:04:59]} 1... Nf6 {[%clk 0:04:52.9]} 2. Nf3 {[%clk 0:04:57.9]}
2... g6 {[%clk 0:04:46.2]} 3. g3 {[%clk 0:04:56.9]} 3... Bg7 {[%clk 0:04:44.7]}
4. Bg2 {[%clk 0:04:56]} 4... O-O {[%clk 0:04:43.3]} 5. O-O {[%clk 0:04:55.2]}
5... d6 {[%clk 0:04:42.6]} 6. Nbd2 {[%clk 0:04:54.1]} 6... Nbd7 {[%clk
0:04:38.2]} 7. h3 {[%clk 0:04:52.8]} 7... e5 {[%clk 0:04:35.5]} 8. e4 {[%clk
0:04:43.7]} 8... exd4 {[%clk 0:04:32.5]} 9. Nxd4 {[%clk 0:04:42.5]} 9... Nc5
{[%clk 0:04:30.7]} 10. Re1 {[%clk 0:04:34.6]} 10... Re8 {[%clk 0:04:29.4]} 11.
c3 {[%clk 0:04:23.9]} 11... Nd3 {[%clk 0:04:06.9]} 12. Re3 {[%clk 0:04:22.6]}
12... Nxc1 {[%clk 0:04:05.1]} 13. Rxc1 {[%clk 0:04:21.2]} 13... c6 {[%clk
0:03:44.7]} 14. Re1 {[%clk 0:04:11.2]} 14... Qc7 {[%clk 0:03:37.2]} 15. Kh2
{[%clk 0:04:08.7]} 15... b6 {[%clk 0:03:33.3]} 16. Nc4 {[%clk 0:04:04]} 16...
Bb7 {[%clk 0:03:29.4]} 17. a4 {[%clk 0:04:02]} 17... Rad8 {[%clk 0:03:26.7]} 18.
b4 {[%clk 0:03:57.6]} 18... d5 {[%clk 0:03:20.8]} 19. exd5 {[%clk 0:03:55.7]}
19... Nxd5 {[%clk 0:03:18.7]} 20. Ne3 {[%clk 0:03:50.3]} 20... Nxe3 {[%clk
0:03:11.7]} 21. Rxe3 {[%clk 0:03:49.2]} 21... Rxe3 {[%clk 0:03:09.9]} 22. fxe3
{[%clk 0:03:48]} 22... c5 {[%clk 0:03:04]} 23. bxc5 {[%clk 0:03:43.3]} 23...
bxc5 {[%clk 0:03:01.6]} 24. Bxb7 {[%clk 0:03:40.9]} 24... cxd4 {[%clk
0:02:43.6]} 25. Qf3 {[%clk 0:03:37.8]} 25... dxc3 {[%clk 0:02:40.4]} 26. Bd5
{[%clk 0:03:36.2]} 26... Qd7 {[%clk 0:02:26.6]} 27. e4 {[%clk 0:03:33.6]} 27...
Rf8 {[%clk 0:02:05.5]} 28. h4 {[%clk 0:03:29.8]} 28... Kh8 {[%clk 0:02:02.8]}
29. a5 {[%clk 0:03:27.4]} 29... f5 {[%clk 0:01:59.6]} 30. Qd3 {[%clk 0:03:04.4]}
30... fxe4 {[%clk 0:01:54.5]} 31. Bxe4 {[%clk 0:03:02.6]} 31... Qxd3 {[%clk
0:01:44]} 32. Bxd3 {[%clk 0:03:01.5]} 32... Rf2+ {[%clk 0:01:38.9]} 33. Kh3
{[%clk 0:02:57.1]} 33... Rf3 {[%clk 0:01:24.8]} 34. Re1 {[%clk 0:02:37.1]} 34...
Bd4 {[%clk 0:00:51.4]} 35. Be4 {[%clk 0:02:23.6]} 35... Re3 {[%clk 0:00:37]} 36.
Rxe3 {[%clk 0:02:22.4]} 36... Bxe3 {[%clk 0:00:36.1]} 37. Kg4 {[%clk 0:02:21]}
37... Kg7 {[%clk 0:00:35.1]} 38. h5 {[%clk 0:02:19.2]} 38... Kf6 {[%clk
0:00:30.2]} 39. hxg6 {[%clk 0:02:18]} 39... hxg6 {[%clk 0:00:29.1]} 40. a6
{[%clk 0:02:16.6]} 40... Bd2 {[%clk 0:00:22.1]} 41. Kf3 {[%clk 0:02:13.8]} 41...
Ke5 {[%clk 0:00:18.9]} 42. Bxg6 {[%clk 0:02:12]} 42... Kf6 {[%clk 0:00:14.9]}
43. Bc2 {[%clk 0:02:10.4]} 43... Kg7 {[%clk 0:00:13.2]} 44. Ke4 {[%clk
0:02:08.4]} 44... Be1 {[%clk 0:00:11.6]} 45. g4 {[%clk 0:02:06.3]} 45... Bd2
{[%clk 0:00:10.6]} 46. Kd5 {[%clk 0:02:04.9]} 46... Be1 {[%clk 0:00:09.5]} 47.
Kc6 {[%clk 0:02:03.8]} 47... Bd2 {[%clk 0:00:07.6]} 48. Kb7 {[%clk 0:02:02.8]}
48... Be3 {[%clk 0:00:05.8]} 49. g5 {[%clk 0:02:00.8]} 49... Bb6 {[%clk
0:00:04.4]} 50. g6 {[%clk 0:01:59.8]} 50... Be3 {[%clk 0:00:03.3]} 51. Kc6
{[%clk 0:01:58.6]} 51... Bb6 {[%clk 0:00:02.3]} 52. Kd5 {[%clk 0:01:57.8]} 52...
Be3 {[%clk 0:00:01.5]} 53. Kc4 {[%clk 0:01:56.9]} 53... Bb6 {[%clk 0:00:00.5]}
54. Kxc3 {[%clk 0:01:56.1]} 1-0

[Event "Live Chess"]
[Site "Chess.com"]
[Date "2023.05.21"]
[Round "-"]
[White "Bakunian2022"]
[Black "Doge_Dandolo"]
[Result "0-1"]
[WhiteElo "761"]
[BlackElo "1907"]
[TimeControl "300"]
[EndTime "22:41:26 PDT"]
[Termination "Doge_Dandolo won by resignation"]

1. e4 {[%clk 0:04:55]} 1... d5 {[%clk 0:04:57.9]} 2. exd5 {[%clk 0:04:53.6]}
2... Nf6 {[%clk 0:04:56.6]} 3. Nc3 {[%clk 0:04:50.7]} 3... Nxd5 {[%clk
0:04:54.9]} 4. Nxd5 {[%clk 0:04:47.8]} 4... Qxd5 {[%clk 0:04:53.1]} 5. d3 {[%clk
0:04:47.2]} 5... Nc6 {[%clk 0:04:50.1]} 6. Nf3 {[%clk 0:04:39.1]} 6... Bg4
{[%clk 0:04:40.9]} 7. Be2 {[%clk 0:04:35.5]} 7... e6 {[%clk 0:04:35.2]} 8. Bd2
{[%clk 0:04:24.2]} 8... Bd6 {[%clk 0:04:30.2]} 9. c4 {[%clk 0:04:14.3]} 9... Qh5
{[%clk 0:04:26]} 10. Qb3 {[%clk 0:04:01.9]} 10... O-O-O {[%clk 0:04:23.5]} 11.
O-O-O {[%clk 0:04:00.6]} 11... e5 {[%clk 0:04:05.4]} 12. h3 {[%clk 0:03:52.6]}
12... Bxf3 {[%clk 0:04:01.1]} 13. Bxf3 {[%clk 0:03:51.2]} 13... Qg6 {[%clk
0:04:00.3]} 14. Bxc6 {[%clk 0:03:38.2]} 14... bxc6 {[%clk 0:03:58.2]} 15. Be3
{[%clk 0:03:34.3]} 15... e4 {[%clk 0:03:49.7]} 16. Bxa7 {[%clk 0:03:24.3]} 16...
Bf4+ {[%clk 0:03:42.3]} 17. Kb1 {[%clk 0:03:15.7]} 17... exd3 {[%clk 0:03:35.4]}
18. Rhe1 {[%clk 0:02:51.8]} 18... d2+ {[%clk 0:03:32.2]} 19. Ka1 {[%clk
0:02:33.2]} 19... Qd3 {[%clk 0:03:14.4]} 20. Qb7+ {[%clk 0:02:21.2]} 20... Kxb7
{[%clk 0:03:12.1]} 0-1

[Event "Live Chess"]
[Site "Chess.com"]
[Date "2023.05.21"]
[Round "-"]
[White "Grookey2012"]
[Black "KeithArkell"]
[Result "0-1"]
[WhiteElo "563"]
[BlackElo "2560"]
[TimeControl "300"]
[EndTime "22:41:36 PDT"]
[Termination "KeithArkell won by checkmate"]

1. e4 {[%clk 0:04:58.9]} 1... c6 {[%clk 0:04:37.6]} 2. Bc4 {[%clk 0:04:55.5]}
2... d5 {[%clk 0:04:36.7]} 3. exd5 {[%clk 0:04:53]} 3... cxd5 {[%clk 0:04:36.1]}
4. Bb5+ {[%clk 0:04:51.3]} 4... Nc6 {[%clk 0:04:34.8]} 5. Nc3 {[%clk 0:04:43]}
5... Nf6 {[%clk 0:04:33.6]} 6. Nf3 {[%clk 0:04:40.6]} 6... Bg4 {[%clk
0:04:32.6]} 7. O-O {[%clk 0:04:36]} 7... e6 {[%clk 0:04:31.8]} 8. h3 {[%clk
0:04:34.6]} 8... Bxf3 {[%clk 0:04:30.4]} 9. Qxf3 {[%clk 0:04:31.4]} 9... Be7
{[%clk 0:04:29.5]} 10. d3 {[%clk 0:04:26.3]} 10... O-O {[%clk 0:04:28.6]} 11.
Qg3 {[%clk 0:04:19.7]} 11... Re8 {[%clk 0:04:20.2]} 12. Bxc6 {[%clk 0:04:04.7]}
12... bxc6 {[%clk 0:04:18.9]} 13. Bh6 {[%clk 0:04:03.4]} 13... g6 {[%clk
0:04:17.4]} 14. h4 {[%clk 0:04:00.2]} 14... Qb8 {[%clk 0:04:14.3]} 15. f4 {[%clk
0:03:51.3]} 15... Qxb2 {[%clk 0:04:10.6]} 16. h5 {[%clk 0:03:49.7]} 16... Qxc3
{[%clk 0:04:08.3]} 17. hxg6 {[%clk 0:03:48]} 17... hxg6 {[%clk 0:04:07.7]} 18.
f5 {[%clk 0:03:42.1]} 18... exf5 {[%clk 0:03:59.4]} 19. Rxf5 {[%clk 0:03:39.2]}
19... Qxa1+ {[%clk 0:03:58.2]} 20. Kf2 {[%clk 0:03:30.6]} 20... Qd4+ {[%clk
0:03:55.6]} 21. Kf1 {[%clk 0:03:24]} 21... Qg4 {[%clk 0:03:52.2]} 22. Rg5 {[%clk
0:03:12.6]} 22... Qxg3 {[%clk 0:03:49.3]} 23. Rxg3 {[%clk 0:03:11]} 23... Bf8
{[%clk 0:03:46.6]} 24. Bxf8 {[%clk 0:03:09.1]} 24... Kxf8 {[%clk 0:03:45.2]} 25.
Rf3 {[%clk 0:03:07.8]} 25... Kg7 {[%clk 0:03:43.9]} 26. Rh3 {[%clk 0:03:04.3]}
26... Rab8 {[%clk 0:03:42.7]} 27. Rf3 {[%clk 0:03:03.1]} 27... Rb2 {[%clk
0:03:41.4]} 28. Rxf6 {[%clk 0:03:01.9]} 28... Kxf6 {[%clk 0:03:39.9]} 29. Kf2
{[%clk 0:03:00.1]} 29... Rxc2+ {[%clk 0:03:39]} 30. Kf1 {[%clk 0:02:58.5]} 30...
Rh8 {[%clk 0:03:36.4]} 31. Ke1 {[%clk 0:02:54.7]} 31... Rh1# {[%clk 0:03:35.1]}
0-1